bitfinex-derivatives/quotes_ETHF0:USTF0_20250911
["timestamp","ask_amount","ask_price","bid_price","bid_amount"]
[1757603025616,2.10494881,4432.0,4431.9,44.7394]
[1757603025817,2.24194881,4432.0,4431.9,44.4376]
[1757603026329,2.24194881,4432.0,4431.9,41.0149]
[1757603026525,2.24194881,4432.0,4431.9,41.3167]
[1757603026722,2.24194881,4432.0,4431.9,41.0149]
[1757603027326,2.67224881,4432.0,4431.9,0.2149]
[1757603027516,0.137,4431.5,4431.4,3.2078]
[1757603027721,0.137,4431.5,4430.9,3.4227]
[1757603027722,0.7011,4431.0,4430.9,3.4227]
[1757603027925,2.67224881,4431.0,4430.9,44.2227]
[1757603028127,2.67224881,4431.0,4430.9,41.0149]
[1757603028327,2.32644881,4431.0,4430.4,3.2078]
[1757603028516,2.44124881,4430.5,4430.4,3.6376]
[1757603028724,2.67224881,4430.5,4430.4,3.6376]
[1757603028927,2.67224881,4430.5,4430.4,44.4376]
[1757603029622,2.67224881,4430.5,4430.4,44.7394]
[1757603030228,2.67224881,4430.5,4430.4,44.4376]
[1757603030627,2.67224881,4430.5,4430.4,41.0149]
[1757603031327,2.67224881,4430.5,4430.4,40.8]
[1757603032026,2.67224881,4430.5,4429.9,0.2149]
[1757603032027,0.9131,4430.0,4429.9,0.2149]
[1757603032229,0.9131,4429.5,4429.4,0.2149]
[1757603032424,2.67224881,4429.5,4429.4,41.2298]
[1757603034527,0.9321,4429.5,4429.4,41.5228]
[1757603036638,0.9321,4429.5,4429.4,41.2298]
[1757603038429,1.1441,4429.5,4429.4,0.2149]
[1757603038929,0.7951,4429.5,4429.4,0.7198]
[1757603039227,0.3377,4429.7,4429.6,0.721]
[1757603039729,0.3377,4429.7,4429.1,40.8]
[1757603039730,0.231,4429.7,4429.1,40.8]
[1757603039931,0.231,4429.7,4429.6,0.4307]
[1757603040124,1.0072,4429.7,4429.6,0.4307]
[1757603040432,0.7905,4429.7,4429.6,0.721]
[1757603040825,35.7198,4430.1,4429.7,0.2903]
[1757603041021,32.512,4430.1,4430.0,0.721]
[1757603041217,32.743,4430.1,4430.0,0.721]
[1757603041422,3.2078,4430.6,4430.5,0.0593]
[1757603041638,3.4388,4430.6,4430.5,0.7803]
[1757603041933,3.2078,4431.2,4430.6,0.2903]
[1757603042130,3.2078,4431.2,4431.1,0.4307]
[1757603042322,32.515,4431.6,4431.5,0.721]
[1757603042727,32.746,4431.6,4431.5,0.7781]
[1757603042935,0.231,4431.7,4431.5,4.4307]
[1757603043131,0.231,4431.8,4431.6,44.23345]
[1757603043330,1.52814881,4432.7,4431.6,44.0078]
[1757603043331,0.231,4432.0,4431.6,44.0078]
[1757603043628,3.2078,4432.8,4431.8,1.52814881]
[1757603043833,3.2078,4432.8,4432.2,3.2078]
[1757603044137,0.231,4432.7,4432.2,3.2078]
[1757603044640,0.3377,4432.6,4432.2,3.2078]
[1757603044931,0.231,4432.7,4432.2,3.2078]
[1757603046730,0.5687,4432.7,4432.2,3.2078]
[1757603047425,0.4528,4432.7,4432.2,3.2078]
[1757603047627,0.3377,4432.6,4432.2,3.2078]
[1757603047822,0.4642,4432.5,4432.2,3.2078]
[1757603048026,0.1265,4432.5,4432.2,3.2078]
[1757603048543,0.231,4432.7,4432.2,3.2078]
[1757603048833,0.5687,4432.7,4432.3,40.8]
[1757603049031,0.3377,4432.6,4432.3,40.8]
[1757603049837,0.231,4432.7,4432.3,40.8]
[1757603050027,0.3377,4432.4,4432.3,40.8]
[1757603050433,0.231,4432.7,4432.3,40.8]
[1757603050638,0.5687,4432.7,4432.3,40.8]
[1757603051238,0.231,4432.7,4432.3,40.8]
[1757603051533,32.6425,4433.0,4432.3,40.8]
[1757603051739,0.3377,4432.4,4432.3,40.8]
[1757603052042,0.1265,4432.5,4432.3,40.8]
[1757603052242,0.4642,4432.5,4432.3,40.8]
[1757603052836,0.231,4432.6,4432.3,40.8]
[1757603053037,0.5687,4432.6,4432.3,40.8]
[1757603054440,0.231,4432.6,4432.3,40.8]
[1757603054643,0.231,4432.7,4432.3,40.8]
[1757603055536,0.3377,4432.6,4432.3,40.8]
[1757603056538,0.231,4432.7,4432.3,40.8]
[1757603057838,0.5687,4432.7,4432.3,40.8]
[1757603059743,0.231,4432.7,4432.3,40.8]
[1757603060251,0.3377,4432.4,4432.3,40.8]
[1757603060747,32.6425,4433.0,4432.3,41.031]
[1757603060946,32.6425,4433.0,4432.8,3.2078]
[1757603060947,0.6952,4433.0,4432.8,3.2078]
[1757603061448,0.7762,4432.9,4432.8,3.2078]
[1757603062144,0.7762,4432.9,4432.8,44.0078]
[1757603064439,0.3377,4432.9,4432.8,44.0078]
[1757603064638,0.231,4433.0,4432.8,44.0078]
[1757603065039,0.5687,4433.0,4432.8,44.0078]
[1757603065240,0.3575,4433.0,4432.8,44.0078]
[1757603065441,0.3377,4432.9,4432.8,44.0078]
[1757603065842,0.3575,4433.0,4432.8,44.0078]
[1757603066146,0.3377,4432.9,4432.8,44.0078]
[1757603066939,0.4642,4433.5,4432.8,44.0078]
[1757603067139,0.1265,4434.5,4432.8,44.0078]
[1757603067140,0.5595,4433.9,4433.2,1.24102934]
[1757603067344,0.231,4433.8,4433.2,1.24102934]
[1757603067651,0.4518,4433.8,4433.2,1.24102934]
[1757603067853,0.334,4433.7,4433.3,40.8]
[1757603068347,0.231,4433.8,4433.3,40.8]
[1757603068851,0.334,4433.4,4433.3,40.8]
[1757603069658,0.334,4433.4,4433.3,44.0078]
[1757603070856,0.6915,4434.0,4433.3,44.0078]
[1757603071045,0.6915,4434.0,4433.3,40.8]
[1757603071046,1.24102934,4433.6,4433.3,40.8]
[1757603071356,0.334,4433.4,4433.3,40.8]
[1757603071543,1.57502934,4433.4,4433.3,40.8]
[1757603071944,0.334,4433.4,4433.3,40.8]
[1757603072846,0.231,4433.8,4433.3,40.8]
[1757603073355,0.23,4433.8,4433.4,1.24102934]
[1757603073852,0.564,4433.8,4433.4,1.24102934]
[1757603074043,0.564,4433.8,4433.3,40.8]
[1757603074444,0.334,4433.7,4433.3,40.8]
[1757603074845,0.23,4433.8,4433.3,40.8]
[1757603075051,0.334,4433.7,4433.3,40.8]
[1757603075449,0.23,4433.8,4433.3,40.8]
[1757603075450,0.334,4433.4,4433.3,40.8]
[1757603075658,1.57502934,4433.4,4433.3,40.8]
[1757603076746,0.334,4433.4,4433.3,40.8]
[1757603083059,1.57502934,4433.4,4433.3,40.8]
[1757603084456,0.334,4433.4,4433.3,40.8]
[1757603084759,3.3343,4434.0,4433.3,40.8]
[1757603084760,0.334,4433.9,4433.3,40.8]
[1757603084961,0.23,4433.8,4433.6,1.24102934]
[1757603085162,0.23,4433.8,4433.3,42.04102934]
[1757603085461,1.24102934,4434.2,4433.7,3.2078]
[1757603085663,0.1265,4434.5,4433.7,3.2078]
[1757603085664,0.23,4434.1,4433.7,3.2078]
[1757603086059,32.731,4434.4,4434.0,1.24102934]
[1757603086361,32.731,4434.4,4434.3,3.2078]
[1757603086762,33.065,4434.4,4434.3,3.2078]
[1757603086964,33.065,4434.4,4434.3,44.0078]
[1757603087354,34.30602934,4434.4,4434.3,40.8]
[1757603087553,33.065,4434.4,4434.3,40.8]
[1757603087763,34.30602934,4434.4,4434.3,40.8]
[1757603087971,33.065,4434.4,4434.3,40.8]
[1757603088361,34.30602934,4434.4,4434.3,40.8]
[1757603088759,33.065,4434.4,4434.3,40.8]
[1757603088960,0.334,4434.9,4434.3,44.0078]
[1757603089170,0.334,4434.4,4434.3,44.0078]
[1757603090266,1.57502934,4434.4,4434.3,44.0078]
[1757603090465,0.334,4434.4,4434.3,40.8]
[1757603091159,0.564,4434.4,4434.3,40.8]
[1757603092169,4.564,4434.4,4434.3,40.8]
[1757603092970,0.564,4434.4,4434.3,40.8]
[1757603093268,0.334,4434.4,4434.3,40.8]
[1757603093460,0.564,4434.4,4434.3,40.8]
[1757603094580,0.334,4434.4,4434.3,40.8]
[1757603094768,0.23,4434.4,4434.3,40.8]
[1757603094976,1.24102934,4434.6,4434.3,40.8]
[1757603094977,0.23,4434.6,4434.3,40.8]
[1757603095268,0.334,4434.5,4434.3,40.8]
[1757603095466,0.334,4434.4,4434.3,40.8]
[1757603096561,0.1232,4434.5,4434.3,40.8]
[1757603096769,0.23,4434.7,4434.3,40.8]
[1757603096974,0.23,4434.7,4434.6,3.2078]
[1757603097470,0.23,4434.8,4434.6,3.2078]
[1757603097670,0.5533,4434.8,4434.6,3.2078]
[1757603097873,0.3233,4434.8,4434.6,3.2078]
[1757603098172,0.5533,4434.8,4434.6,3.2078]
[1757603099673,0.23,4434.8,4434.6,3.2078]
[1757603099876,0.3233,4434.7,4434.6,3.2078]
[1757603100175,0.5386,4434.7,4434.6,3.2078]
[1757603100873,0.3233,4434.7,4434.6,3.2078]
[1757603104367,0.3233,4435.0,4434.6,3.2078]
[1757603104571,0.3233,4435.0,4434.8,1.24102934]
[1757603104779,0.4497,4435.0,4434.6,3.2078]
[1757603105078,0.4497,4435.0,4434.9,40.8]
[1757603107284,1.69072934,4435.0,4434.9,40.8]
[1757603108480,5.91620934,4435.0,4434.9,40.8]
[1757603108680,5.69072934,4435.0,4434.9,40.8]
[1757603109077,5.69072934,4435.0,4434.0,3.2078]
[1757603109078,0.7597,4434.1,4434.0,3.2078]
[1757603109283,2.23072934,4434.1,4434.0,3.2078]
[1757603109482,2.23072934,4434.1,4434.0,44.0078]
[1757603110093,0.7686,4434.1,4434.0,44.0078]
[1757603110288,2.00962934,4434.1,4434.0,44.0078]
[1757603110793,2.00962934,4434.1,4434.0,40.8]
[1757603112396,2.29668598,4434.1,4434.0,40.8]
[1757603113597,2.29668598,4434.1,4433.4,3.2078]
[1757603113797,0.8861,4433.5,4433.4,3.2078]
[1757603113998,0.8861,4433.5,4432.0,3.55628511]
[1757603113999,0.3417,4433.0,4432.2,3.2078]
[1757603114195,1.52808598,4432.4,4431.7,3.2078]
[1757603114399,0.23,4432.5,4432.3,3.2078]
[1757603114695,0.172,4433.4,4432.4,42.32808598]
[1757603114894,0.172,4433.4,4433.1,3.2078]
[1757603115093,0.3233,4433.3,4433.1,3.2078]
[1757603115796,0.172,4433.4,4433.1,3.2078]
[1757603115999,0.3233,4433.3,4433.1,3.2078]
[1757603116300,0.172,4433.4,4433.1,3.2078]
[1757603116599,0.3233,4433.7,4433.1,3.2078]
[1757603116795,0.23,4433.4,4433.1,3.2078]
[1757603117496,0.3233,4434.1,4433.2,0.23]
[1757603117794,0.4497,4434.5,4433.9,3.2078]
[1757603118099,0.5533,4434.4,4433.9,3.2078]
[1757603118800,0.23,4434.4,4433.9,3.4378]
[1757603119591,0.1264,4434.5,4433.9,3.4378]
[1757603119796,0.1264,4434.5,4434.4,3.2078]
[1757603120006,0.4497,4434.5,4434.4,3.2078]
[1757603120201,0.4497,4434.5,4434.4,44.0078]
[1757603122805,0.1264,4434.5,4434.4,44.0078]
[1757603123806,0.4497,4434.5,4434.4,44.0078]
[1757603126406,0.1264,4434.5,4434.4,44.0078]
[1757603127003,0.4497,4434.5,4434.4,44.0078]
[1757603131111,0.1266,4434.0,4433.7,3.2078]
[1757603131411,0.1266,4434.0,4432.5,2.83947878]
[1757603131412,0.4529,4433.0,4432.9,3.2078]
[1757603131610,0.4529,4433.0,4432.9,44.0078]
[1757603134214,0.4529,4433.0,4432.9,40.8]
[1757603134413,4.4529,4433.0,4432.9,40.8]
[1757603135813,0.6829,4433.0,4432.9,40.8]
[1757603136718,0.23,4433.0,4432.9,44.0078]
[1757603136923,0.6829,4433.0,4432.9,44.0078]
[1757603137213,0.4529,4433.0,4432.9,44.0078]
[1757603137608,0.1266,4433.5,4432.9,44.0078]
[1757603137808,0.23,4433.4,4432.9,44.0078]
[1757603138009,0.1266,4433.0,4432.9,44.0078]
[1757603138708,0.3263,4433.2,4432.9,44.0078]
[1757603138914,0.23,4433.4,4432.9,44.0078]
[1757603138915,0.4529,4433.0,4432.9,3.2078]
[1757603139321,0.4529,4433.0,4432.9,44.0078]
[1757603140415,0.4529,4433.0,4432.9,40.8]
[1757603142323,0.6829,4433.0,4432.9,40.8]
[1757603147319,0.3263,4431.9,4431.7,3.2078]
[1757603147516,0.5324,4431.8,4431.7,3.2078]
[1757603147723,0.5324,4431.8,4431.7,44.0078]
[1757603147724,0.7349,4431.8,4431.7,44.0078]
[1757603152021,0.5563,4431.8,4431.7,44.0078]
[1757603152226,0.3263,4431.8,4431.7,44.0078]
[1757603152426,0.5563,4431.8,4431.7,44.0078]
[1757603152925,0.1266,4432.0,4431.7,44.0078]
[1757603153126,0.23,4431.9,4431.7,44.0078]
[1757603153530,0.5563,4431.9,4431.7,44.0078]
[1757603154026,0.3263,4431.8,4431.7,44.0078]
[1757603154219,0.23,4431.9,4431.7,44.0078]
[1757603154624,0.1266,4432.5,4431.7,44.0078]
[1757603154833,0.4529,4433.0,4432.2,3.2078]
[1757603155019,0.4529,4433.0,4431.8,1.75808598]
[1757603155020,0.3263,4432.9,4432.8,3.2078]
[1757603155523,0.3263,4432.9,4432.8,44.0078]
[1757603156722,1.85438598,4432.9,4432.8,44.0078]
[1757603157121,0.1266,4433.0,4432.8,44.0078]
[1757603157122,0.1266,4433.0,4432.8,40.8]
[1757603157320,0.2942,4432.9,4432.8,40.8]
[1757603157620,0.1266,4433.0,4432.8,40.8]
[1757603157818,0.23,4433.1,4432.8,40.8]
[1757603158218,0.5242,4433.1,4432.8,40.8]
[1757603158418,0.23,4433.1,4432.8,40.8]
[1757603158718,0.5242,4433.1,4432.8,40.8]
[1757603158913,0.2942,4433.1,4432.8,40.8]
[1757603159121,0.23,4433.2,4432.8,40.8]
[1757603159319,0.23,4433.2,4433.1,3.2078]
[1757603160327,0.23,4433.3,4433.1,3.2078]
[1757603160722,0.23,4433.3,4433.2,40.8]
[1757603161027,0.3566,4433.5,4433.2,40.8]
[1757603161331,0.6508,4433.5,4433.2,40.8]
[1757603161624,0.2942,4433.4,4433.2,40.8]
[1757603162520,0.3566,4433.5,4433.2,40.8]
[1757603162725,0.2942,4433.4,4433.2,40.8]
[1757603163116,0.3566,4433.5,4433.2,40.8]
[1757603163522,0.2942,4433.4,4433.2,40.8]
[1757603163728,0.1211,4433.5,4433.2,40.8]
[1757603163729,0.507,4433.3,4433.2,40.8]
[1757603163928,0.507,4433.3,4432.4,3.2078]
[1757603163929,0.5294,4432.5,4432.4,3.2078]
[1757603164123,0.8236,4432.0,4431.9,3.2078]
[1757603164325,0.8236,4432.0,4430.5,0.0595]
[1757603164326,0.8236,4431.5,4431.4,3.2078]
[1757603164627,0.8236,4431.5,4430.9,3.2078]
[1757603164628,0.8236,4431.0,4430.9,3.2078]
[1757603164830,0.8236,4431.0,4430.9,3.3982]
[1757603164831,1.0536,4431.0,4430.9,3.3982]
[1757603165023,1.0536,4431.0,4430.9,44.1982]
[1757603165521,1.0536,4431.0,4430.9,44.103]
[1757603165721,1.0536,4431.0,4430.9,40.8]
[1757603166422,5.0536,4431.0,4430.9,40.8]
[1757603170222,5.0536,4431.0,4429.8,3.267]
[1757603170223,0.2942,4430.9,4429.9,0.0592]
[1757603170418,0.507,4430.9,4430.8,0.1904]
[1757603170618,0.737,4430.9,4430.8,0.1904]
[1757603170824,0.737,4430.9,4430.8,40.9904]
[1757603171224,0.5242,4430.9,4430.8,40.9904]
[1757603171423,0.2256,4431.2,4430.8,41.0496]
[1757603171633,0.5198,4431.2,4431.1,0.2496]
[1757603171928,0.4556,4431.2,4431.1,0.2496]
[1757603172128,0.2256,4431.2,4431.1,0.2496]
[1757603172432,0.23,4431.2,4431.1,0.2496]
[1757603172732,0.23,4431.2,4431.1,41.0496]
[1757603173434,0.2942,4432.4,4431.1,45.44608]
[1757603173734,3.3289,4432.5,4431.9,3.2078]
[1757603173735,0.23,4432.3,4431.9,3.2078]
[1757603174125,0.2942,4432.2,4431.9,3.2078]
[1757603174534,0.23,4432.3,4431.9,3.2078]
[1757603175426,0.2942,4432.2,4431.9,3.2078]
[1757603175621,3.3289,4433.0,4431.9,3.2078]
[1757603175838,0.23,4432.9,4431.9,3.2078]
[1757603176132,0.1211,4432.5,4432.4,3.2078]
[1757603176335,0.4153,4432.5,4432.4,3.2078]
[1757603176535,0.6281,4432.5,4432.4,3.2078]
[1757603177038,0.4153,4432.5,4432.4,3.2078]
[1757603178131,0.8236,4432.5,4432.4,3.2078]
[1757603178341,0.8236,4432.5,4431.7,3.2078]
[1757603178342,0.507,4431.8,4431.7,3.2078]
[1757603178637,0.1211,4431.5,4430.2,3.2078]
[1757603178836,0.2942,4430.4,4430.2,3.2078]
[1757603179041,0.1211,4430.5,4430.3,40.8]
[1757603179335,0.2942,4430.4,4430.3,40.8]
[1757603179635,0.23,4430.9,4430.3,40.8]
[1757603179836,0.5242,4430.9,4430.8,3.2078]
[1757603180230,0.2942,4430.8,4430.7,3.2078]
[1757603180430,0.23,4430.9,4430.3,40.8]
[1757603180431,0.2942,4430.4,4430.3,40.8]
[1757603182623,0.23,4430.9,4430.3,40.8]
[1757603182624,0.2942,4430.9,4430.3,40.8]
[1757603182823,0.1211,4431.0,4430.3,40.8]
[1757603183035,0.1211,4431.0,4430.7,3.2078]
[1757603183224,0.23,4430.9,4430.7,3.2078]
[1757603183424,0.2942,4431.4,4430.7,3.2078]
[1757603183631,0.2942,4431.8,4431.2,3.2078]
[1757603183831,3.2078,4432.1,4431.2,3.2078]
[1757603183832,0.3511,4431.5,4431.2,3.2078]
[1757603184138,0.23,4431.9,4431.2,3.2078]
[1757603184535,0.23,4431.9,4431.8,40.8]
[1757603184842,0.5242,4431.9,4431.8,40.8]
[1757603186938,0.2942,4431.9,4431.8,40.8]
[1757603187140,0.5242,4431.9,4431.8,40.8]
[1757603188833,0.5242,4431.9,4429.7,2.02819913]
[1757603188834,0.1202,4431.0,4429.7,2.02819913]
[1757603189038,0.1202,4430.5,4430.4,3.2078]
[1757603189236,0.4196,4430.5,4430.4,3.2078]
[1757603189438,0.4196,4430.5,4430.4,44.0078]
[1757603190235,0.2994,4431.4,4430.4,44.0078]
[1757603190440,0.2994,4431.2,4430.4,44.0078]
[1757603190639,0.23,4431.3,4430.4,44.0078]
[1757603190839,0.4196,4430.5,4430.4,44.0078]
[1757603191147,0.2994,4430.7,4430.4,44.0078]
[1757603191538,0.4196,4430.5,4430.4,44.0078]
[1757603191739,0.23,4430.7,4430.4,44.0078]
[1757603192149,0.2994,4430.6,4430.4,44.0078]
[1757603192446,0.1202,4430.5,4430.4,44.0078]
[1757603192647,0.4196,4430.5,4430.4,44.0078]
[1757603193146,0.1202,4431.0,4430.4,44.0078]
[1757603193443,0.4196,4430.5,4430.4,44.0078]
[1757603194046,0.4196,4430.5,4430.4,40.8]
[1757603194349,3.6274,4430.5,4430.4,40.8]
[1757603195238,7.6274,4430.5,4430.4,40.8]
[1757603195553,7.6274,4430.5,4429.2,0.2133]
[1757603195554,0.4975,4429.3,4429.2,0.2133]
[1757603195877,0.7275,4429.3,4429.2,41.0133]
[1757603196349,0.7275,4429.3,4429.2,40.8]
[1757603200852,0.1981,4428.3,4428.2,3.4211]
[1757603201152,0.7275,4428.3,4428.2,0.2133]
[1757603201356,0.9378,4428.3,4428.2,41.0133]
[1757603201853,0.9378,4428.3,4428.2,40.8]
[1757603202039,0.9378,4428.3,4427.2,3.3654]
[1757603202040,0.2994,4428.2,4427.2,3.3654]
[1757603202243,0.1202,4428.0,4427.2,3.3654]
[1757603202446,0.1202,4428.0,4427.3,40.8]
[1757603202447,3.5072,4427.4,4427.3,40.8]
[1757603202655,0.5304,4427.4,4427.3,40.8]
[1757603203755,0.5304,4427.4,4427.3,40.9576]
[1757603204457,0.5304,4427.4,4427.3,40.8]
[1757603210551,3.7382,4427.4,4427.3,40.8]
[1757603210753,7.7382,4427.4,4426.0,3.2078]
[1757603210959,0.2994,4427.3,4426.1,0.1576]
[1757603211361,3.4388,4427.4,4426.2,40.8]
[1757603211660,0.828,4427.0,4426.3,0.1576]
[1757603211856,0.7078,4426.4,4426.3,0.4182]
[1757603212065,0.9378,4426.4,4426.3,0.4182]
[1757603212664,0.9378,4426.4,4426.2,40.8]
[1757603212665,0.6384,4426.4,4426.2,40.8]
[1757603212956,4.69165535,4426.3,4426.2,40.8]
[1757603214265,0.5304,4426.3,4426.2,40.8]
[1757603216660,0.5304,4426.3,4425.7,0.1576]
[1757603217067,0.9388,4426.3,4426.2,0.2133]
[1757603217267,0.9388,4426.3,4426.2,0.4182]
[1757603217470,3.2078,4426.4,4426.3,0.1577]
[1757603217661,3.4388,4426.4,4426.3,0.5737]
[1757603217861,3.2078,4426.4,4426.3,0.5737]
[1757603218062,3.405,4426.9,4426.8,0.416]
[1757603218266,4.1554,4426.9,4426.8,0.21]
[1757603218568,8.1554,4426.9,4425.9,0.1577]
[1757603218763,3.9244,4426.9,4425.9,0.1577]
[1757603218964,0.4282,4426.8,4426.7,0.206]
[1757603219262,0.7396,4426.8,4426.7,0.416]
[1757603220263,0.5086,4426.8,4426.7,0.416]
[1757603220470,0.7396,4426.8,4426.7,0.416]
[1757603220662,0.9476,4426.8,4426.7,0.416]
[1757603220866,0.7396,4426.8,4426.7,0.416]
[1757603221167,0.9476,4426.8,4426.7,0.21]
[1757603221466,0.9476,4426.8,4425.9,0.1577]
[1757603221663,0.9476,4426.8,4426.7,0.416]
[1757603222969,1.51695591,4426.8,4426.2,0.1577]
[1757603223169,0.9476,4426.8,4426.2,0.1577]
[1757603223467,1.28652278,4426.7,4426.6,0.21]
[1757603224069,0.3114,4426.6,4425.8,40.9577]
[1757603224375,8.31665535,4426.4,4426.3,0.21]
[1757603224672,0.6365,4426.0,4425.9,0.416]
[1757603224866,0.231,4426.0,4425.9,0.5737]
[1757603225271,0.1972,4426.3,4426.2,0.416]
[1757603225462,1.07422256,4426.3,4426.2,0.416]
[1757603225661,0.3114,4426.8,4426.2,0.416]
[1757603225875,0.79660944,4426.7,4426.6,0.416]
[1757603226162,1.10800944,4426.7,4426.6,0.5737]
[1757603226367,0.79660944,4426.7,4426.6,0.5737]
[1757603226570,1.51320944,4426.7,4426.0,3.3655]
[1757603226769,0.5086,4425.9,4425.8,40.8]
[1757603227069,0.7396,4425.9,4425.8,40.8]
[1757603227272,1.30581318,4425.9,4425.8,40.8]
[1757603228066,4.51361318,4425.9,4425.8,40.8]
[1757603229272,4.31641318,4425.9,4425.8,40.9577]
[1757603229577,4.00501318,4425.9,4425.8,40.9577]
[1757603230271,4.31641318,4425.9,4425.8,40.8]
[1757603230676,4.31641318,4425.9,4425.8,40.9577]
[1757603230875,0.79721318,4425.9,4425.8,40.9577]
[1757603231077,0.231,4425.9,4425.8,45.02595]
[1757603231576,0.5424,4425.9,4425.8,45.02595]
[1757603231768,0.5424,4425.9,4425.8,44.8]
[1757603231969,0.231,4426.0,4425.8,44.8]
[1757603232173,0.3516,4426.0,4425.8,44.8]
[1757603232373,0.3114,4425.9,4425.8,40.8]
[1757603235375,0.5424,4425.9,4425.8,40.8]
[1757603235981,0.3114,4425.8,4425.1,0.231]
[1757603236174,0.3114,4425.4,4425.0,3.2078]
[1757603236472,0.3114,4425.3,4425.2,40.8]
[1757603240678,0.5424,4425.3,4425.2,40.8]
[1757603243181,1.10314408,4425.3,4425.2,40.8]
[1757603244582,3.3357,4425.5,4425.2,40.8]
[1757603244583,0.3114,4425.4,4425.2,40.8]
[1757603244785,0.5424,4425.3,4425.2,40.8]
[1757603246179,0.3251,4424.5,4424.4,3.2078]
[1757603246384,0.4393,4424.0,4423.9,3.2078]
[1757603246887,0.4393,4424.0,4423.9,44.0078]
[1757603249577,0.4393,4424.0,4423.9,40.8]
[1757603250786,0.6703,4424.0,4423.9,44.0078]
[1757603251191,0.4393,4424.0,4423.9,44.0078]
[1757603252395,0.4393,4424.0,4423.9,48.0078]
[1757603252582,0.4393,4424.0,4423.9,48.2388]
[1757603253184,0.4393,4424.0,4423.9,44.0078]
[1757603256998,4.4393,4424.0,4423.9,40.8]
[1757603257288,4.4393,4424.0,4422.8,0.1718349]
[1757603257487,0.7181,4422.9,4422.8,0.1718349]
[1757603257690,0.9491,4422.9,4422.8,0.1718349]
[1757603257990,0.9491,4422.9,4422.8,40.9718349]
[1757603259187,4.9491,4422.9,4422.8,40.9718349]
[1757603259397,0.9491,4422.9,4422.8,0.1718349]
[1757603259591,0.7181,4422.9,4422.8,0.1718349]
[1757603259895,0.5457,4422.9,4422.8,40.9718349]
[1757603260591,0.3147,4422.9,4422.8,40.9718349]
[1757603260901,0.5457,4422.9,4422.8,40.9718349]
[1757603261595,0.3147,4422.9,4422.8,40.9718349]
[1757603264699,0.3147,4422.9,4422.8,44.9718349]
[1757603264999,0.3147,4422.9,4422.8,40.9718349]
[1757603265303,0.3147,4422.9,4422.8,44.9718349]
[1757603265498,0.1261,4423.0,4422.9,0.40685]
[1757603265704,0.1261,4423.0,4422.9,4.40685]
[1757603265891,0.1261,4423.0,4422.8,0.4028349]
[1757603266098,0.4408,4423.0,4422.9,40.8]
[1757603266794,0.1261,4423.0,4422.9,40.8]
[1757603267098,0.1261,4423.5,4423.1,0.40683]
[1757603267295,0.3147,4423.4,4423.2,0.40682]
[1757603267492,0.3147,4423.4,4423.3,3.2078]
[1757603268103,0.1261,4423.5,4423.4,0.40681]
[1757603268310,1e-08,4423.5,4423.4,0.40681]
[1757603268795,1e-08,4423.5,4423.4,41.20681]
[1757603269410,0.1261,4425.0,4423.4,44.8]
[1757603269600,0.1261,4425.0,4424.4,3.2078]
[1757603269805,0.5313,4424.5,4424.4,3.2078]
[1757603270002,0.846,4424.5,4424.4,3.2078]
[1757603270305,0.846,4424.5,4424.4,44.0078]
[1757603270513,0.846,4424.5,4424.4,40.8]
[1757603271102,0.846,4424.5,4423.0,2.02819913]
[1757603271103,18.25784188,4424.5,4421.8,4.05639826]
[1757603271306,3.2078,4422.0,4421.5,0.1203]
[1757603271503,5.05584287,4421.6,4421.5,0.1203]
[1757603271801,5.05584287,4421.6,4421.0,0.1203]
[1757603272007,3.2078,4421.3,4421.1,40.8]
[1757603273203,3.2078,4421.3,4421.2,0.304]
[1757603274500,32.562,4422.2,4421.2,0.304]
[1757603274501,3.2078,4421.8,4421.2,0.304]
[1757603274702,3.2078,4421.8,4421.6,0.304]
[1757603277615,32.562,4422.2,4422.1,0.3507]
[1757603279015,32.795,4422.2,4422.1,0.3507]
[1757603279215,32.795,4422.2,4422.1,41.1507]
[1757603279610,3.2078,4422.4,4422.1,41.1507]
[1757603279807,3.2078,4423.0,4422.6,0.3507]
[1757603280111,0.233,4422.9,4422.6,0.3507]
[1757603280316,0.233,4422.8,4422.6,0.3507]
[1757603280512,0.233,4422.7,4422.6,0.3507]
[1757603280811,3.2078,4423.5,4423.1,0.3507]
[1757603281116,0.233,4423.4,4423.1,0.3507]
[1757603281505,3.2078,4423.5,4423.1,0.3507]
[1757603281707,0.233,4423.4,4423.1,0.3507]
[1757603282512,0.233,4423.3,4423.1,0.3507]
[1757603283209,3.2078,4423.5,4423.1,0.3507]
[1757603283413,32.573,4423.9,4423.1,7.5585]
[1757603283617,0.233,4423.8,4423.6,0.3507]
[1757603284416,3.2078,4424.1,4423.6,0.3507]
[1757603284611,3.2078,4424.6,4424.5,0.481]
[1757603284811,3.4408,4424.6,4424.5,0.481]
[1757603285215,3.4408,4424.6,4424.5,41.281]
[1757603286505,3.2078,4424.6,4424.5,41.281]
[1757603286709,3.4408,4424.6,4424.5,41.281]